{"text_format":"1","workbook":"xlsx","n_sheets":1,"sheets":["Clientes "],"not_rendered":{"charts":0,"images":0,"macros":1,"external_links":0,"defined_names":0,"comments":1,"pivot_tables":0},"unopened":[],"bounds":{"document_bytes":16777216,"sheet_cells":100000,"rows_first":2000,"rows_last":500,"rows_between":2000,"halvings":0,"cell_chars":16384,"cell_head_chars":4096},"cells_cut":0,"cells_raw":0,"read":"whole","date_system":"1900"}

{"sheet":"Clientes ","index":0,"n_rows":231,"n_cols":22,"rows_kept":231,"cut":false,"hidden":false,"merged":[[0,0,0,10],[1,0,1,10],[2,0,2,10],[7,8,8,21],[7,1,9,1],[7,2,9,2],[7,3,9,3],[7,5,9,5],[7,4,9,4],[7,6,8,7],[3,2,3,7],[119,0,184,0],[185,0,230,0],[7,0,9,0],[10,0,43,0],[44,0,69,0],[70,0,87,0],[88,0,118,0]]}
["Superintendencia del Mercado de Valores"]
["Clientes de Casas de Valores"]
["Plantilla DS-12"]
["Casa de Valor:",null,"                           Versión 1.3"]
["Código*:"]
["Período*:"]
["(1)  Se debe colocar el monto en Balboas.   Si selecciona \"otros\" debe especificar a que  Tipo de Operación corresponde.   Los campor con asterisco (*) son obligatorios."]
["Grupo","Código","Nacionalidad","Número de Clientes*","Número de Cuentas*","Monto de Cuentas*","Sector*",null,"Tipo de Valor* (1)"]
[]
[null,null,null,null,null,null,"Privado (Cantidad)","Gubernamental  (Cantidad)","Bonos","Letras del Tesoro","Notos del Tesoro","Valores Comerciales Negociables","Acciones Comunes","Acciones Preferidas","Acciones o Cuotas de Participación","Futuros","Opciones","Efectivo","Fondos de Inversión","CFD","Otros","Otros Detalle"]
["OCDE","001","Alemania",null,null,{"$f":"SUM(I11:U11)","v":0}]
[null,"002","Andorra",null,null,{"$f":"SUM(I12:U12)","v":0}]
[null,"003","Australia",null,null,0]
[null,"004","Austria",null,null,0]
[null,"005","Bélgica",null,null,0]
[null,"006","Canada",null,null,0]
[null,"007","Chipre",null,null,0]
[null,"008","Dinamarca",null,null,0]
[null,"009","Eslovaquia",null,null,0]
[null,"010","Eslovenia",null,null,0]
[null,"011","España",null,null,0]
[null,"012","Estados Unidos de América (INCLUYE Samoa Americana, Guam, Islas Midway, Islas Marianas del Norte, Puerto Rico, Islas Vírgenes de los EE.UU. y las Islas Wake)",null,null,0]
[null,"013","Estonia",null,null,0]
[null,"014","Finlandia",null,null,0]
[null,"015","Francia (INCLUYE Guayana Francesa, Territorios Australes Franceses, Guadalupe, Martinica, Mayotte, Mónaco, Reunión y San Pedro y Miquelón)",null,null,0]
[null,"016","Grecia",null,null,0]
[null,"017","Groenlandia",null,null,0]
[null,"018","Holanda",null,null,0]
[null,"019","Irlanda",null,null,0]
[null,"020","Islandia",null,null,0]
[null,"021","Islas Feroe",null,null,0]
[null,"022","Italia",null,null,0]
[null,"023","Japón",null,null,0]
[null,"024","Liechtenstein",null,null,0]
[null,"025","Luxemburgo",null,null,0]
[null,"026","Malta",null,null,0]
[null,"027","Noruega",null,null,0]
[null,"028","Nueva Zelanda",null,null,0]
[null,"029","Portugal",null,null,0]
[null,"030","Reino Unido",null,null,0]
[null,"031","San Marino",null,null,0]
[null,"032","Suecia",null,null,0]
[null,"033","Suiza",null,null,0]
[null,"034","Vaticano",null,null,0]
["Centros Offshore ","035","Anguila",null,null,0]
[null,"036","Antigua y Barbuda",null,null,0]
[null,"037","Antillas Neerlandesas",null,null,0]
[null,"038","Aruba",null,null,0]
[null,"039","Bahamas",null,null,0]
[null,"040","Bahréin",null,null,0]
[null,"041","Barbados",null,null,0]
[null,"042","Bermudas",null,null,0]
[null,"043","Curazao",null,null,0]
[null,"044","Gibraltar",null,null,0]
[null,"045","Guernsey",null,null,0]
[null,"046","Hong Kong SAR",null,null,0]
[null,"047","Isla de los Hombres",null,null,0]
[null,"048","Islas Caimán",null,null,0]
[null,"049","Islas Vírgenes Británicas",null,null,0]
[null,"050","jersey",null,null,0]
[null,"051","Macao",null,null,0]
[null,"052","Líbano",null,null,0]
[null,"053","Mauricio",null,null,0]
[null,"054","Montserrat y San Cristóbal",null,null,0]
[null,"055","Panamá",null,null,0]
[null,"056","Samoa",null,null,0]
[null,"057","Singapur",null,null,0]
[null,"058","Sint Maarten",null,null,0]
[null,"059","St. Kitts - Nevis",null,null,0]
[null,"060","Vanuatu",null,null,0]
["Europa","061","Albania",null,null,0]
[null,"062","Bielorrusia",null,null,0]
[null,"063","Bosnia y Herzegovina",null,null,0]
[null,"064","Bulgaria",null,null,0]
[null,"065","Croacia",null,null,0]
[null,"066","Hungría",null,null,{"$f":"SUM(I76:U76)","v":0}]
[null,"067","Letonia",null,null,0]
[null,"068","Lituania",null,null,0]
[null,"069","Macedonia",null,null,0]
[null,"070","Moldavia",null,null,0]
[null,"071","Montenegro",null,null,0]
[null,"072","Polonia",null,null,0]
[null,"073","República Checa",null,null,0]
[null,"074","Rumania",null,null,0]
[null,"075","Rusia",null,null,0]
[null,"076","Serbia",null,null,0]
[null,"077","Turquía",null,null,0]
[null,"078","Ucrania",null,null,0]
[" Latino América y Caribe","079","Argentina",null,null,0]
[null,"080","Belice",null,null,0]
[null,"081","Bolivia",null,null,0]
[null,"082","Bonaire, Saint Eustatius and Saba",null,null,0]
[null,"083","Brasil",null,null,0]
[null,"084","Chile",null,null,0]
[null,"085","Colombia",null,null,0]
[null,"086","Costa Rica",null,null,0]
[null,"087","Cuba",null,null,0]
[null,"088","Dominica",null,null,0]
[null,"089","República Dominicana",null,null,0]
[null,"090","Ecuador  ",null,null,0]
[null,"091","El Salvador",null,null,0]
[null,"092","Falkland Islands",null,null,0]
[null,"093","Grenada",null,null,0]
[null,"094","Guatemala",null,null,0]
[null,"095","Guyana",null,null,0]
[null,"096","Haití",null,null,0]
[null,"097","Honduras",null,null,0]
[null,"098","Jamaica",null,null,0]
[null,"099","México",null,null,0]
[null,{"$f":"1+B109","v":100},"Nicaragua",null,null,0]
[null,101,"Paraguay",null,null,0]
[null,102,"Perú",null,null,0]
[null,103,"St. Lucia",null,null,0]
[null,104,"St. Vincent ",null,null,0]
[null,105,"Suriname",null,null,0]
[null,106,"Trinidad and Tobago  ",null,null,0]
[null,107,"Turks and Caicos",null,null,0]
[null,108,"Uruguay",null,null,0]
[null,109,"Venezuela  ",null,null,0]
["África y Medio Oriente",110,"Angola",null,null,0]
[null,111,"Arabia Saudita",null,null,0]
[null,112,"Argelia",null,null,0]
[null,113,"Benín",null,null,0]
[null,114,"Botswana",null,null,0]
[null,115,"Burkina Faso",null,null,0]
[null,{"$f":"1+B125","v":116},"Burundi",null,null,0]
[null,117,"Cabo Verde",null,null,0]
[null,118,"Camerún",null,null,0]
[null,119,"Chad",null,null,0]
[null,120,"Comoras",null,null,0]
[null,121,"Congo",null,null,0]
[null,122,"Côte d'Ivoire",null,null,0]
[null,123,"Djibouti",null,null,0]
[null,124,"Egipto",null,null,0]
[null,125,"Emiratos Árabes Unidos",null,null,0]
[null,126,"Eritrea",null,null,0]
[null,127,"Etiopía",null,null,0]
[null,128,"Gabón",null,null,0]
[null,129,"Gambia",null,null,0]
[null,130,"Ghana",null,null,{"$f":"SUM(I140:U140)","v":0}]
[null,131,"Guinea",null,null,0]
[null,{"$f":"1+B141","v":132},"Guinea Ecuatorial",null,null,0]
[null,133,"Guinea-Bissau",null,null,0]
[null,134,"Irak",null,null,0]
[null,135,"Irán",null,null,0]
[null,136,"Israel",null,null,0]
[null,137,"Jordania",null,null,0]
[null,138,"Katar",null,null,0]
[null,139,"Kenia",null,null,0]
[null,140,"Kuwait",null,null,0]
[null,141,"Lesoto",null,null,0]
[null,142,"Liberia",null,null,0]
[null,143,"Libia",null,null,0]
[null,144,"Madagascar",null,null,0]
[null,145,"Malawi",null,null,0]
[null,146,"Malí",null,null,0]
[null,147,"Marruecos",null,null,0]
[null,{"$f":"1+B157","v":148},"Mauritania",null,null,0]
[null,149,"Mozambique",null,null,0]
[null,150,"Namibia",null,null,0]
[null,151,"Níger",null,null,0]
[null,152,"Nigeria",null,null,0]
[null,153,"Omán",null,null,0]
[null,154,"República Centroafricana",null,null,0]
[null,155,"República Democrática del Congo",null,null,0]
[null,156,"Ruanda",null,null,0]
[null,157,"Santo Tomé y Príncipe",null,null,0]
[null,158,"Senegal",null,null,0]
[null,159,"Seychelles",null,null,0]
[null,160,"Sierra Leona",null,null,0]
[null,161,"Siria",null,null,0]
[null,162,"Somalia",null,null,0]
[null,163,"St. Helena",null,null,0]
[null,{"$f":"1+B173","v":164},"Sudáfrica",null,null,0]
[null,165,"Sudán",null,null,0]
[null,166,"Sudán del Sur",null,null,0]
[null,167,"Swazilandia",null,null,0]
[null,168,"Tanzania",null,null,0]
[null,169,"Territorio Palestino",null,null,0]
[null,170,"Togo",null,null,0]
[null,171,"Túnez",null,null,0]
[null,172,"Uganda",null,null,0]
[null,173,"Yemen",null,null,0]
[null,174,"Zambia",null,null,0]
[null,175,"Zimbabue",null,null,0]
["Asia y Pacífico",176,"Afganistán",null,null,0]
[null,177,"Armenia",null,null,0]
[null,178,"Azerbaiyán",null,null,0]
[null,179,"Bangladesh",null,null,0]
[null,{"$f":"1+B189","v":180},"Brunei",null,null,0]
[null,181,"Bután",null,null,0]
[null,182,"Camboya",null,null,0]
[null,183,"China",null,null,0]
[null,184,"Corea del Norte",null,null,0]
[null,185,"Corea del Sur",null,null,0]
[null,186,"EE.UU. Islas del Pacífico",null,null,0]
[null,187,"Fiji",null,null,0]
[null,188,"Filipinas",null,null,0]
[null,189,"Georgia",null,null,0]
[null,190,"India",null,null,0]
[null,191,"Indonesia",null,null,0]
[null,192,"Islas Marshall",null,null,0]
[null,193,"islas Salomón",null,null,0]
[null,194,"Kazajstán",null,null,{"$f":"SUM(I204:U204)","v":0}]
[null,195,"Kirguistán",null,null,0]
[null,{"$f":"1+B205","v":196},"Kiribati",null,null,0]
[null,197,"Laos",null,null,0]
[null,198,"Malasia",null,null,0]
[null,199,"Maldivas",null,null,0]
[null,200,"Micronesia",null,null,0]
[null,201,"Mongolia",null,null,0]
[null,202,"Myanmar",null,null,0]
[null,203,"Nauru",null,null,0]
[null,204,"Nepal",null,null,0]
[null,205,"Nueva Caledonia",null,null,0]
[null,206,"Pakistán",null,null,0]
[null,207,"Palau",null,null,0]
[null,208,"Papua Nueva Guinea",null,null,0]
[null,209,"Polinesia francés",null,null,0]
[null,210,"Sri Lanka",null,null,0]
[null,211,"Tailandia",null,null,0]
[null,{"$f":"1+B221","v":212},"Taipéi Chino",null,null,0]
[null,213,"Tayikistán",null,null,0]
[null,214,"Territorios Británicos de Ultramar",null,null,0]
[null,215,"Timor Leste",null,null,0]
[null,216,"Tonga",null,null,0]
[null,217,"Turkmenistán",null,null,0]
[null,218,"Tuvalu",null,null,0]
[null,219,"Uzbekistán",null,null,0]
[null,220,"Vietnam",null,null,0]
[null,221,"Wallis y Futuna",null,null,0]